[Event "DVM U14 2021"]
[Site "Willingen"]
[Date "2022.08.15"]
[Round "5"]
[White "Bade, Deniz"]
[Black "Schwan, Aaron"]
[Result "0-1"]
[ECO "A31"]
[WhiteElo "1414"]
[BlackElo "1672"]
[Annotator "NA RC"]
[PlyCount "102"]
[EventDate "2022.08.12"]
[EventType "team-tourn"]
[EventRounds "7"]
[EventCountry "GER"]
[SourceTitle "playchess.com"]
[Source "ChessBase"]
[SourceQuality "1"]
[TimeControl "40/5400+30:1800+30"]

1. e4 {[%emt 0:00:04]} c5 {[%emt 0:00:00]} 2. c4 {[%emt 0:00:26]} g6 {[%emt 0:00:10]} 3. Nf3 {[%emt 0:00:54]} Bg7 {[%emt 0:00:14]} 4. d4 {[%emt 0:00:41]} cxd4 {[%emt 0:00:06]} 5. Nxd4 {[%emt 0:00:37]} Nf6 {[%emt 0:00:46]} 6. Nc3 {[%emt 0:00:38]} d6 {[%emt 0:01:49]} 7. Be2 {[%emt 0:03:30]} O-O {[%emt 0:01:31]} 8. Be3 {[%emt 0:02:51]} Nbd7 {[%emt 0:02:58]} 9. f3 {[%emt 0:00:34]} a6 {[%emt 0:01:54]} 10. Qd2 {[%emt 0:02:22]} Ne5 {[%emt 0:12:30]} 11. b3 {[%emt 0:04:06]} Bd7 {[%emt 0:10:32]} 12. Bh6 {[%emt 0:04:49]} Rc8 {[%emt 0:05:25]} 13. Bxg7 {[%emt 0:00:05]} Kxg7 {[%emt 0:10:09]} 14. Rc1 {[%emt 0:07:07]} Qa5 {[%emt 0:02:03]} 15. O-O {[%emt 0:04:27]} Nc6 {[%emt 0:01:18]} 16. Rfd1 {[%emt 0:06:58]} Nxd4 {[%emt 0:00:43]} 17. Qxd4 {[%emt 0:05:52]} Kg8 {[%emt 0:08:36]} 18. f4 {[%emt 0:03:19]} Rfd8 {[%emt 0:08:23]} 19. Bf3 {[%emt 0:04:51]} Bc6 {[%emt 0:09:44]} 20. Qe3 {[%emt 0:03:13]} b5 {[%emt 0:03:04]} 21. cxb5 {[%emt 0:01:33]} axb5 {[%emt 0:06:21]} 22. e5 {[%emt 0:01:39]} Bxf3 {[%emt 0:01:14]} 23. Qxf3 {[%emt 0:05:36]} Ne8 {[%emt 0:03:42]} 24. Nd5 {[%emt 0:03:42]} Kg7 {[%emt 0:02:22]} 25. Rxc8 {[%emt 0:00:08]} Rxc8 {[%emt 0:00:33]} 26. exd6 {[%emt 0:01:08]} Nxd6 {[%emt 0:00:43]} 27. Qe2 {[%emt 0:02:45]} Qa7+ {[%emt 0:00:18]} 28. Kh1 {[%emt 0:11:43]} Nf5 {[%emt 0:01:32]} 29. g4 {[%emt 0:05:42]} Nh6 {[%emt 0:01:19]} 30. Nxe7 {[%emt 0:08:06]} Re8 {[%emt 0:02:56]} 31. Qb2+ {[%emt 0:01:32]} f6 {[%emt 0:01:08]} 32. Nd5 {[%emt 0:00:38]} Nxg4 {[%emt 0:01:12]} 33. Kg2 {[%emt 0:00:01]} Ne3+ {[%emt 0:00:07]} 34. Nxe3 {[%emt 0:00:08]} Qxe3 {[%emt 0:00:36]} 35. Qd2 {[%emt 0:00:57]} Qe2+ {[%emt 0:01:21]} 36. Qxe2 {[%emt 0:00:02]} Rxe2+ {[%emt 0:00:07]} 37. Kf3 {[%emt 0:00:53]} Rxh2 {[%emt 0:00:50]} 38. Rd7+ {[%emt 0:00:27]} Kh6 {[%emt 0:00:17]} 39. a4 {[%emt 0:00:01]} Rh3+ {[%emt 0:00:25]} 40. Ke4 {[%emt 0:00:20]} Rxb3 {[%emt 0:00:00]} 41. a5 {[%emt 0:01:21]} Ra3 {[%emt 0:02:06]} 42. Ra7 {[%emt 0:04:57]} Ra4+ {[%emt 0:03:56]} 43. Kd5 {[%emt 0:01:18]} Rxf4 {[%emt 0:02:37]} 44. Kc5 {[%emt 0:01:48]} b4 {[%emt 0:03:29]} 45. Rb7 {[%emt 0:02:42]} b3 {[%emt 0:01:33]} 46. Rxb3 {[%emt 0:00:14]} Ra4 {[%emt 0:07:13]} 47. Kb5 {[%emt 0:00:26]} Ra1 {[%emt 0:00:43]} 48. a6 {[%emt 0:00:47]} g5 {[%emt 0:00:21]} 49. Rb4 {[%emt 0:00:35]} f5 {[%emt 0:00:24]} 50. Ra4 {[%emt 0:01:07]} Re1 {[%emt 0:01:17]} 51. Kb6 {[%emt 0:06:11]} g4 0-1

[Event "DVM U14 2021"]
[Site "Willingen"]
[Date "2022.08.15"]
[Round "5"]
[White "Tran, Anh Duc Kevin"]
[Black "Yue, Qihang"]
[Result "0-1"]
[ECO "C50"]
[WhiteElo "1398"]
[BlackElo "1401"]
[Annotator "NA RC"]
[PlyCount "96"]
[EventDate "2022.08.12"]
[EventType "team-tourn"]
[EventRounds "7"]
[EventCountry "GER"]
[SourceTitle "playchess.com"]
[Source "ChessBase"]
[SourceQuality "1"]
[TimeControl "40/5400+30:1800+30"]

1. e4 {[%emt 0:00:31]} e5 {[%emt 0:00:00]} 2. Nf3 {[%emt 0:00:11]} Nc6 {[%emt 0:00:36]} 3. Bc4 {[%emt 0:00:13]} Bc5 {[%emt 0:02:31]} 4. Nc3 {[%emt 0:01:39]} Nf6 {[%emt 0:01:21]} 5. d3 {[%emt 0:01:26]} h6 {[%emt 0:00:42]} 6. Be3 {[%emt 0:00:19]} Bb6 {[%emt 0:00:16]} 7. O-O {[%emt 0:00:31]} d6 {[%emt 0:00:46]} 8. h3 {[%emt 0:00:48]} Be6 {[%emt 0:00:08]} 9. Bb3 {[%emt 0:00:18]} O-O {[%emt 0:01:40]} 10. d4 {[%emt 0:00:23]} exd4 {[%emt 0:00:13]} 11. Nxd4 {[%emt 0:03:00]} Nxd4 {[%emt 0:00:36]} 12. Bxd4 {[%emt 0:03:14]} Re8 {[%emt 0:04:10]} 13. Qd3 {[%emt 0:11:28]} Bxd4 {[%emt 0:03:25]} 14. Qxd4 {[%emt 0:03:29]} Qe7 {[%emt 0:01:33]} 15. Rae1 {[%emt 0:04:57]} Bd7 {[%emt 0:02:45]} 16. f4 {[%emt 0:07:33]} Be6 {[%emt 0:06:17]} 17. Nd5 {[%emt 0:01:03]} Bxd5 {[%emt 0:01:08]} 18. exd5 {[%emt 0:03:34]} Qxe1 {[%emt 0:00:10]} 19. Rxe1 {[%emt 0:00:06]} Rxe1+ {[%emt 0:00:01]} 20. Kh2 {[%emt 0:02:35]} Re4 {[%emt 0:01:55]} 21. Qc3 {[%emt 0:01:18]} Rc8 {[%emt 0:02:26]} 22. Qg3 {[%emt 0:08:04]} a5 {[%emt 0:00:47]} 23. a4 {[%emt 0:02:47]} Nd7 {[%emt 0:03:04]} 24. Qg4 {[%emt 0:02:17]} Rd8 {[%emt 0:01:10]} 25. c4 {[%emt 0:00:31]} Nc5 {[%emt 0:01:46]} 26. Qf5 {[%emt 0:06:40]} Rxf4 {[%emt 0:01:49]} 27. Qxf4 {[%emt 0:00:06]} Nxb3 {[%emt 0:00:56]} 28. Qe3 {[%emt 0:00:48]} Nc5 {[%emt 0:01:51]} 29. Qe1 {[%emt 0:01:37]} b6 {[%emt 0:04:49]} 30. b4 {[%emt 0:00:49]} axb4 {[%emt 0:00:12]} 31. Qxb4 {[%emt 0:01:29]} Ra8 {[%emt 0:12:19]} 32. Qb5 {[%emt 0:02:31]} Kf8 {[%emt 0:00:59]} 33. Qc6 {[%emt 0:00:21]} Ra7 {[%emt 0:02:06]} 34. g3 {[%emt 0:01:00]} Ke7 {[%emt 0:01:22]} 35. Qb5 {[%emt 0:00:49]} Rxa4 {[%emt 0:01:16]} 36. Kg2 {[%emt 0:05:41]} Ra5 {[%emt 0:01:42]} 37. Qb2 {[%emt 0:03:58]} Kf8 {[%emt 0:01:44]} 38. Kf3 {[%emt 0:02:53]} Nd3 {[%emt 0:03:57]} 39. Qb3 {[%emt 0:00:23]} Ne5+ {[%emt 0:01:18]} 40. Ke4 {[%emt 0:00:26]} Rc5 {[%emt 0:01:48]} 41. Kd4 {[%emt 0:30:38]} Rxc4+ {[%emt 0:30:26]} 42. Qxc4 {[%emt 0:00:09]} Nxc4 {[%emt 0:00:04]} 43. Kxc4 {[%emt 0:00:20]} Ke7 {[%emt 0:00:46]} 44. h4 {[%emt 0:00:16]} h5 {[%emt 0:00:37]} 45. Kb5 {[%emt 0:00:12]} Kd7 {[%emt 0:00:10]} 46. Kc4 {[%emt 0:00:10]} c6 {[%emt 0:00:41]} 47. dxc6+ {[%emt 0:00:11]} Kxc6 {[%emt 0:00:07]} 48. Kd4 {[%emt 0:00:09]} b5 {[%emt 0:01:05]} 0-1

[Event "DVM U14 2021"]
[Site "Willingen"]
[Date "2022.08.15"]
[Round "5"]
[White "Vesszö, Aaron"]
[Black "Lipinsky, Pierre"]
[Result "1-0"]
[ECO "D46"]
[WhiteElo "1306"]
[BlackElo "1560"]
[Annotator "NA RC"]
[PlyCount "81"]
[EventDate "2022.08.12"]
[EventType "team-tourn"]
[EventRounds "7"]
[EventCountry "GER"]
[SourceTitle "playchess.com"]
[Source "ChessBase"]
[SourceQuality "1"]
[TimeControl "40/5400+30:1800+30"]

1. d4 {[%emt 0:00:01]} d5 {[%emt 0:00:00]} 2. c4 {[%emt 0:00:03]} e6 {[%emt 0:00:00]} 3. Nf3 {[%emt 0:00:05]} c6 {[%emt 0:00:00]} 4. e3 {[%emt 0:00:07]} Nf6 {[%emt 0:01:01]} 5. Nbd2 {[%emt 0:00:42]} Be7 {[%emt 0:00:29]} 6. Bd3 {[%emt 0:00:40]} O-O {[%emt 0:00:15]} 7. O-O {[%emt 0:02:25]} Nbd7 {[%emt 0:01:09]} 8. e4 {[%emt 0:01:16]} dxe4 {[%emt 0:01:23]} 9. Nxe4 {[%emt 0:01:00]} Nxe4 {[%emt 0:00:08]} 10. Bxe4 {[%emt 0:00:12]} Nf6 {[%emt 0:00:13]} 11. Bc2 {[%emt 0:04:47]} c5 {[%emt 0:02:46]} 12. Qd3 {[%emt 0:04:20]} cxd4 {[%emt 0:00:36]} 13. Bg5 {[%emt 0:05:08]} g6 {[%emt 0:01:04]} 14. Rad1 {[%emt 0:12:15]} Qb6 {[%emt 0:04:00]} 15. Qxd4 {[%emt 0:01:47]} Qxd4 {[%emt 0:02:54]} 16. Rxd4 {[%emt 0:03:28]} b6 {[%emt 0:06:11]} 17. Ne5 {[%emt 0:10:27]} Kg7 {[%emt 0:01:26]} 18. Nc6 {[%emt 0:01:47]} Bc5 {[%emt 0:03:29]} 19. Rh4 {[%emt 0:05:03]} Bb7 {[%emt 0:01:37]} 20. Bh6+ {[%emt 0:01:25]} Kg8 {[%emt 0:00:36]} 21. Bxf8 {[%emt 0:01:16]} Kxf8 {[%emt 0:01:44]} 22. Ne5 {[%emt 0:03:39]} Ke7 {[%emt 0:00:47]} 23. Rd1 {[%emt 0:04:37]} Bd6 {[%emt 0:01:17]} 24. Nxf7 {[%emt 0:03:29]} Bxh2+ {[%emt 0:00:38]} 25. Kxh2 {[%emt 0:00:02]} Kxf7 {[%emt 0:01:31]} 26. g4 {[%emt 0:01:48]} Bf3 {[%emt 0:08:49]} 27. Rg1 {[%emt 0:02:18]} g5 {[%emt 0:01:35]} 28. Rh3 {[%emt 0:00:35]} Bxg4 {[%emt 0:00:15]} 29. Rhg3 {[%emt 0:02:20]} h5 {[%emt 0:00:40]} 30. f3 {[%emt 0:05:33]} Bf5 {[%emt 0:00:08]} 31. Bxf5 {[%emt 0:00:02]} exf5 {[%emt 0:00:13]} 32. Rxg5 {[%emt 0:00:24]} Rc8 {[%emt 0:00:53]} 33. Rg7+ {[%emt 0:00:06]} Ke6 {[%emt 0:00:11]} 34. Re1+ {[%emt 0:00:17]} Kd6 {[%emt 0:00:09]} 35. Rg6 {[%emt 0:00:07]} Rf8 {[%emt 0:00:21]} 36. b4 {[%emt 0:05:01]} a5 {[%emt 0:00:10]} 37. a3 {[%emt 0:01:28]} axb4 {[%emt 0:00:11]} 38. axb4 {[%emt 0:00:33]} Kd7 {[%emt 0:02:06]} 39. Re5 {[%emt 0:02:40]} Nh7 {[%emt 0:00:12]} 40. Rg7+ {[%emt 0:00:09]} Kd6 {[%emt 0:00:04]} 41. Rd5+ {[%emt 0:30:46]} 1-0

[Event "DVM U14 2021"]
[Site "Willingen"]
[Date "2022.08.15"]
[Round "5"]
[White "Huber, Laura"]
[Black "Wedekind, Ferdinand"]
[Result "1-0"]
[ECO "D00"]
[WhiteElo "1302"]
[BlackElo "1446"]
[Annotator "NA RC"]
[PlyCount "27"]
[EventDate "2022.08.12"]
[EventType "team-tourn"]
[EventRounds "7"]
[EventCountry "GER"]
[SourceTitle "playchess.com"]
[Source "ChessBase"]
[SourceQuality "1"]
[TimeControl "40/5400+30:1800+30"]

1. d4 {[%emt 0:00:01]} d5 {[%emt 0:00:04]} 2. Nc3 {[%emt 0:00:04]} Nf6 {[%emt 0:00:15]} 3. Bf4 {[%emt 0:00:06]} Bf5 {[%emt 0:00:15]} 4. f3 {[%emt 0:00:11]} e6 {[%emt 0:01:14]} 5. g4 {[%emt 0:00:29]} Bg6 {[%emt 0:00:55]} 6. h4 {[%emt 0:00:21]} h6 {[%emt 0:01:18]} 7. Qd2 {[%emt 0:13:36]} Nc6 {[%emt 0:27:50]} 8. O-O-O {[%emt 0:05:46]} Bd6 {[%emt 0:08:47]} 9. Nh3 {[%emt 0:10:48]} Bxf4 {[%emt 0:05:57]} 10. Nxf4 {[%emt 0:01:39]} Bh7 {[%emt 0:02:20]} 11. g5 {[%emt 0:03:17]} hxg5 {[%emt 0:02:39]} 12. hxg5 {[%emt 0:00:32]} Nd7 {[%emt 0:00:56]} 13. g6 {[%emt 0:01:34]} fxg6 {[%emt 0:00:20]} 14. Nxg6 {[%emt 0:24:02]} 1-0

[Event "DVM U14 2021"]
[Site "Willingen"]
[Date "2022.08.15"]
[Round "5"]
[White "Liu, Leon"]
[Black "Finck, Jonathan"]
[Result "1-0"]
[ECO "C47"]
[WhiteElo "1256"]
[BlackElo "1424"]
[Annotator "NA RC"]
[PlyCount "119"]
[EventDate "2022.08.12"]
[EventType "team-tourn"]
[EventRounds "7"]
[EventCountry "GER"]
[SourceTitle "playchess.com"]
[Source "ChessBase"]
[SourceQuality "1"]
[TimeControl "40/5400+30:1800+30"]

1. e4 {[%emt 0:00:06]} e5 {[%emt 0:00:00]} 2. Nf3 {[%emt 0:00:07]} Nc6 {[%emt 0:00:07]} 3. Nc3 {[%emt 0:00:07]} Nf6 {[%emt 0:00:12]} 4. a3 {[%emt 0:00:14]} d5 {[%emt 0:00:05]} 5. exd5 {[%emt 0:04:50]} Nxd5 {[%emt 0:00:45]} 6. Bb5 {[%emt 0:07:52]} Nxc3 {[%emt 0:00:06]} 7. bxc3 {[%emt 0:03:29]} Bd7 {[%emt 0:00:41]} 8. O-O {[%emt 0:01:01]} Bd6 {[%emt 0:00:39]} 9. d4 {[%emt 0:04:50]} O-O {[%emt 0:14:18]} 10. Bxc6 {[%emt 0:03:16]} Bxc6 {[%emt 0:01:24]} 11. Nxe5 {[%emt 0:00:33]} Bxe5 {[%emt 0:00:04]} 12. dxe5 {[%emt 0:00:12]} Qxd1 {[%emt 0:00:05]} 13. Rxd1 {[%emt 0:00:31]} Rad8 {[%emt 0:02:24]} 14. Bg5 {[%emt 0:01:54]} Rd5 {[%emt 0:01:41]} 15. Rxd5 {[%emt 0:00:05]} Bxd5 {[%emt 0:00:04]} 16. Rd1 {[%emt 0:02:54]} Be6 {[%emt 0:02:45]} 17. h3 {[%emt 0:01:10]} Re8 {[%emt 0:00:49]} 18. g4 {[%emt 0:02:08]} h6 {[%emt 0:00:58]} 19. Bd8 {[%emt 0:01:22]} c6 {[%emt 0:00:15]} 20. f4 {[%emt 0:00:39]} Bd5 {[%emt 0:01:07]} 21. Bc7 {[%emt 0:02:52]} Rc8 {[%emt 0:00:44]} 22. Bd6 {[%emt 0:01:24]} Be4 {[%emt 0:00:35]} 23. Rd2 {[%emt 0:00:58]} Rd8 {[%emt 0:00:39]} 24. Kf2 {[%emt 0:02:53]} g6 {[%emt 0:03:08]} 25. Ke3 {[%emt 0:03:30]} Bd5 {[%emt 0:01:36]} 26. Bc5 {[%emt 0:00:44]} b6 {[%emt 0:00:48]} 27. Bxb6 {[%emt 0:00:09]} axb6 {[%emt 0:00:06]} 28. c4 {[%emt 0:00:22]} Kf8 {[%emt 0:00:06]} 29. cxd5 {[%emt 0:00:19]} cxd5 {[%emt 0:00:04]} 30. c4 {[%emt 0:00:58]} d4+ {[%emt 0:00:13]} 31. Rxd4 {[%emt 0:00:09]} Rxd4 {[%emt 0:00:03]} 32. Kxd4 {[%emt 0:00:04]} Ke7 {[%emt 0:00:04]} 33. Kd5 {[%emt 0:00:04]} Kd7 {[%emt 0:00:34]} 34. f5 {[%emt 0:01:14]} h5 {[%emt 0:00:23]} 35. fxg6 {[%emt 0:00:06]} fxg6 {[%emt 0:00:13]} 36. gxh5 {[%emt 0:00:03]} gxh5 {[%emt 0:00:05]} 37. e6+ {[%emt 0:00:19]} Ke7 {[%emt 0:00:03]} 38. Kc6 {[%emt 0:00:36]} Kxe6 {[%emt 0:00:05]} 39. Kxb6 {[%emt 0:00:25]} Kd7 {[%emt 0:00:21]} 40. Kb7 {[%emt 0:00:09]} Kd6 {[%emt 0:00:10]} 41. a4 {[%emt 0:30:09]} Kc5 {[%emt 0:30:02]} 42. a5 {[%emt 0:00:13]} Kxc4 {[%emt 0:00:04]} 43. a6 {[%emt 0:00:05]} Kd4 {[%emt 0:00:03]} 44. a7 {[%emt 0:00:06]} Ke4 {[%emt 0:00:11]} 45. a8=Q {[%emt 0:00:06]} Kf4 {[%emt 0:00:05]} 46. Qg8 {[%emt 0:00:11]} h4 {[%emt 0:00:04]} 47. Qg4+ {[%emt 0:00:10]} Ke5 {[%emt 0:00:09]} 48. Qxh4 {[%emt 0:00:07]} Kf5 {[%emt 0:00:10]} 49. Qg4+ {[%emt 0:00:08]} Ke5 {[%emt 0:00:03]} 50. Qf3 {[%emt 0:00:11]} Kd4 {[%emt 0:00:04]} 51. Qe2 {[%emt 0:00:07]} Kc3 {[%emt 0:00:05]} 52. Qd1 {[%emt 0:00:13]} Kc4 {[%emt 0:00:17]} 53. Kc6 {[%emt 0:00:09]} Kc3 {[%emt 0:00:05]} 54. Qd5 {[%emt 0:00:10]} Kb4 {[%emt 0:00:05]} 55. Qc5+ {[%emt 0:00:05]} Kb3 {[%emt 0:00:16]} 56. Kd5 {[%emt 0:00:05]} Kb2 {[%emt 0:00:04]} 57. Kd4 {[%emt 0:00:04]} Kb3 {[%emt 0:00:11]} 58. Qc3+ {[%emt 0:00:07]} Ka2 {[%emt 0:00:04]} 59. Qb4 {[%emt 0:00:04]} Ka1 {[%emt 0:00:04]} 60. Ke4 {[%emt 0:03:51]} 1-0

[Event "DVM U14 2021"]
[Site "Willingen"]
[Date "2022.08.15"]
[Round "5"]
[White "Wegener, Moritz"]
[Black "Fettig, Michel"]
[Result "0-1"]
[ECO "A16"]
[WhiteElo "1202"]
[BlackElo "1370"]
[Annotator "NA RC"]
[PlyCount "72"]
[EventDate "2022.08.12"]
[EventType "team-tourn"]
[EventRounds "7"]
[EventCountry "GER"]
[SourceTitle "playchess.com"]
[Source "ChessBase"]
[SourceQuality "1"]
[TimeControl "40/5400+30:1800+30"]

1. c4 {[%emt 0:00:35]} Nf6 {[%emt 0:00:34]} 2. Nc3 {[%emt 0:00:19]} g6 {[%emt 0:01:03]} 3. g3 {[%emt 0:00:12]} Bg7 {[%emt 0:00:55]} 4. Bg2 {[%emt 0:01:02]} e6 {[%emt 0:02:16]} 5. d3 {[%emt 0:01:30]} d5 {[%emt 0:00:40]} 6. e3 {[%emt 0:00:32]} c6 {[%emt 0:03:35]} 7. b3 {[%emt 0:00:32]} Ng4 {[%emt 0:00:47]} 8. Qxg4 {[%emt 0:00:30]} Bxc3+ {[%emt 0:00:03]} 9. Bd2 {[%emt 0:06:48]} Bxa1 {[%emt 0:00:20]} 10. d4 {[%emt 0:00:30]} e5 {[%emt 0:00:57]} 11. Qd1 {[%emt 0:00:28]} Bb2 {[%emt 0:01:29]} 12. b4 {[%emt 0:00:21]} exd4 {[%emt 0:00:52]} 13. cxd5 {[%emt 0:02:24]} cxd5 {[%emt 0:01:17]} 14. exd4 {[%emt 0:05:39]} Bxd4 {[%emt 0:00:51]} 15. Ne2 {[%emt 0:00:44]} Bg7 {[%emt 0:00:11]} 16. Be3 {[%emt 0:01:05]} Be6 {[%emt 0:01:42]} 17. O-O {[%emt 0:00:22]} O-O {[%emt 0:01:51]} 18. Qd2 {[%emt 0:00:54]} Qd7 {[%emt 0:01:14]} 19. Rd1 {[%emt 0:01:03]} Rd8 {[%emt 0:00:22]} 20. Qd3 {[%emt 0:03:42]} Nc6 {[%emt 0:01:48]} 21. f4 {[%emt 0:00:52]} Nxb4 {[%emt 0:01:37]} 22. Qd2 {[%emt 0:00:36]} Nc6 {[%emt 0:03:08]} 23. Bf2 {[%emt 0:00:20]} Ne7 {[%emt 0:00:44]} 24. a3 {[%emt 0:03:08]} Bh3 {[%emt 0:01:07]} 25. Bf3 {[%emt 0:00:43]} Be6 {[%emt 0:00:40]} 26. Qd3 {[%emt 0:04:29]} Nf5 {[%emt 0:01:17]} 27. h3 {[%emt 0:01:36]} d4 {[%emt 0:01:32]} 28. Re1 {[%emt 0:02:09]} Ne3 {[%emt 0:00:54]} 29. Kh2 {[%emt 0:00:32]} Bxh3 {[%emt 0:00:15]} 30. Bxe3 {[%emt 0:00:11]} dxe3 {[%emt 0:00:18]} 31. Qxe3 {[%emt 0:00:04]} Bg4 {[%emt 0:00:19]} 32. Kg2 {[%emt 0:00:21]} Bxf3+ {[%emt 0:00:11]} 33. Qxf3 {[%emt 0:00:07]} Qd5 {[%emt 0:00:05]} 34. Qxd5 {[%emt 0:00:11]} Rxd5 {[%emt 0:00:07]} 35. Rb1 {[%emt 0:00:13]} Rd2 {[%emt 0:00:24]} 36. Kf3 {[%emt 0:00:06]} b6 {[%emt 0:00:22]} 0-1

[Event "DVM U14 2021"]
[Site "Willingen"]
[Date "2022.08.15"]
[Round "5"]
[White "Walter, Romeo"]
[Black "Gotfried, Elias"]
[Result "1-0"]
[ECO "A25"]
[WhiteElo "1197"]
[BlackElo "1589"]
[Annotator "NA RC"]
[PlyCount "117"]
[EventDate "2022.08.12"]
[EventType "team-tourn"]
[EventRounds "7"]
[EventCountry "GER"]
[SourceTitle "playchess.com"]
[Source "ChessBase"]
[SourceQuality "1"]
[TimeControl "40/5400+30:1800+30"]

1. c4 {[%emt 0:00:10]} e5 {[%emt 0:00:00]} 2. Nc3 {[%emt 0:00:07]} Nc6 {[%emt 0:00:00]} 3. g3 {[%emt 0:00:07]} f5 {[%emt 0:00:35]} 4. e4 {[%emt 0:00:53]} Bc5 {[%emt 0:02:04]} 5. Bg2 {[%emt 0:00:37]} d6 {[%emt 0:01:04]} 6. Nge2 {[%emt 0:00:18]} Nf6 {[%emt 0:01:06]} 7. O-O {[%emt 0:05:29]} h5 {[%emt 0:06:39]} 8. d3 {[%emt 0:00:59]} h4 {[%emt 0:00:01]} 9. Na4 {[%emt 0:02:05]} hxg3 {[%emt 0:06:45]} 10. hxg3 {[%emt 0:00:31]} Bd4 {[%emt 0:01:29]} 11. Nxd4 {[%emt 0:04:13]} Nxd4 {[%emt 0:00:36]} 12. Bg5 {[%emt 0:01:41]} Ne6 {[%emt 0:15:15]} 13. Qd2 {[%emt 0:06:48]} Qd7 {[%emt 0:02:57]} 14. Nc3 {[%emt 0:22:17]} Qf7 {[%emt 0:09:15]} 15. Bxf6 {[%emt 0:01:14]} Qxf6 {[%emt 0:01:23]} 16. Nd5 {[%emt 0:00:28]} Qf7 {[%emt 0:08:34]} 17. f4 {[%emt 0:03:48]} exf4 {[%emt 0:02:10]} 18. exf5 {[%emt 0:06:13]} Qxf5 {[%emt 0:01:55]} 19. Rae1 {[%emt 0:02:43]} Kd8 {[%emt 0:03:16]} 20. Nxf4 {[%emt 0:02:02]} Nxf4 {[%emt 0:00:29]} 21. Qxf4 {[%emt 0:02:12]} Qxf4 {[%emt 0:00:16]} 22. Rxf4 {[%emt 0:01:58]} Re8 {[%emt 0:03:21]} 23. Rxe8+ {[%emt 0:00:07]} Kxe8 {[%emt 0:00:17]} 24. Rh4 {[%emt 0:05:25]} c6 {[%emt 0:00:15]} 25. Rh8+ {[%emt 0:00:23]} Kd7 {[%emt 0:00:08]} 26. Rh7 {[%emt 0:00:42]} a5 {[%emt 0:03:21]} 27. Bh3+ {[%emt 0:01:20]} Kd8 {[%emt 0:00:15]} 28. Bxc8 {[%emt 0:00:27]} Rxc8 {[%emt 0:00:06]} 29. Rxg7 {[%emt 0:00:19]} Rc7 {[%emt 0:00:15]} 30. Rxc7 {[%emt 0:00:03]} Kxc7 {[%emt 0:00:14]} 31. Kf2 {[%emt 0:00:06]} Kd7 {[%emt 0:00:22]} 32. Kf3 {[%emt 0:00:14]} Ke6 {[%emt 0:00:12]} 33. Kf4 {[%emt 0:01:31]} Kf6 {[%emt 0:00:44]} 34. d4 {[%emt 0:09:52]} b6 {[%emt 0:03:00]} 35. d5 {[%emt 0:00:14]} c5 {[%emt 0:00:26]} 36. a4 {[%emt 0:00:11]} Kg6 {[%emt 0:00:16]} 37. g4 {[%emt 0:00:05]} Kf6 {[%emt 0:00:04]} 38. g5+ {[%emt 0:00:04]} Kg6 {[%emt 0:00:06]} 39. Kg4 {[%emt 0:00:17]} Kg7 {[%emt 0:00:07]} 40. Kf5 {[%emt 0:00:17]} Kf7 {[%emt 0:00:08]} 41. g6+ {[%emt 0:30:23]} Ke7 {[%emt 0:30:33]} 42. g7 {[%emt 0:00:05]} Kf7 {[%emt 0:00:10]} 43. g8=R {[%emt 0:00:16]} Kxg8 {[%emt 0:00:05]} 44. Ke6 {[%emt 0:00:03]} Kf8 {[%emt 0:00:05]} 45. Kxd6 {[%emt 0:00:04]} Ke8 {[%emt 0:00:08]} 46. Kc7 {[%emt 0:00:07]} b5 {[%emt 0:00:08]} 47. axb5 {[%emt 0:00:11]} a4 {[%emt 0:00:04]} 48. d6 {[%emt 0:00:06]} Kf7 {[%emt 0:00:04]} 49. d7 {[%emt 0:00:06]} Kg6 {[%emt 0:00:17]} 50. d8=Q {[%emt 0:00:04]} a3 {[%emt 0:00:07]} 51. bxa3 {[%emt 0:00:05]} Kf5 {[%emt 0:00:05]} 52. Qd5+ {[%emt 0:00:04]} Kf4 {[%emt 0:00:07]} 53. b6 {[%emt 0:00:05]} Ke3 {[%emt 0:00:05]} 54. b7 {[%emt 0:00:05]} Kf4 {[%emt 0:00:07]} 55. b8=R {[%emt 0:00:07]} Ke3 {[%emt 0:00:06]} 56. Re8+ {[%emt 0:00:15]} Kf4 {[%emt 0:00:03]} 57. Qf7+ {[%emt 0:00:07]} Kg5 {[%emt 0:00:12]} 58. Rg8+ {[%emt 0:00:05]} Kh6 59. Qg6# {[%emt 0:00:30]} 1-0

[Event "DVM U14 2021"]
[Site "Willingen"]
[Date "2022.08.15"]
[Round "5"]
[White "Dickel, Karl-Joachim"]
[Black "Sun, Christopher"]
[Result "1/2-1/2"]
[ECO "C55"]
[WhiteElo "1178"]
[BlackElo "1091"]
[Annotator "NA RC"]
[PlyCount "51"]
[EventDate "2022.08.12"]
[EventType "team-tourn"]
[EventRounds "7"]
[EventCountry "GER"]
[SourceTitle "playchess.com"]
[Source "ChessBase"]
[SourceQuality "1"]
[TimeControl "40/5400+30:1800+30"]

1. e4 {[%emt 0:00:03]} e5 {[%emt 0:00:09]} 2. Nf3 {[%emt 0:00:05]} Nc6 {[%emt 0:00:07]} 3. Nc3 {[%emt 0:00:09]} Nf6 {[%emt 0:00:16]} 4. Bc4 {[%emt 0:00:11]} Nxe4 {[%emt 0:00:09]} 5. Bxf7+ {[%emt 0:00:16]} Kxf7 {[%emt 0:00:26]} 6. Nxe4 {[%emt 0:00:09]} d5 {[%emt 0:00:10]} 7. Ng3 {[%emt 0:00:33]} e4 {[%emt 0:00:48]} 8. Ng1 {[%emt 0:00:46]} Qf6 {[%emt 0:00:23]} 9. f3 {[%emt 0:02:47]} Bc5 {[%emt 0:04:27]} 10. c3 {[%emt 0:03:42]} Re8 {[%emt 0:02:27]} 11. N1e2 {[%emt 0:00:00]} Kg8 {[%emt 0:03:08]} 12. d4 {[%emt 0:02:53]} exd3 {[%emt 0:04:41]} 13. Qxd3 {[%emt 0:00:31]} Qe6 {[%emt 0:04:16]} 14. Bd2 {[%emt 0:02:58]} Ne5 {[%emt 0:07:43]} 15. Qc2 {[%emt 0:04:51]} b6 {[%emt 0:05:03]} 16. O-O-O {[%emt 0:01:06]} Ba6 {[%emt 0:03:12]} 17. Nf4 {[%emt 0:02:23]} Qf7 {[%emt 0:03:52]} 18. b4 {[%emt 0:06:59]} Bf8 {[%emt 0:04:24]} 19. Be3 {[%emt 0:03:25]} Nc4 {[%emt 0:02:52]} 20. Bd2 {[%emt 0:05:10]} Rad8 {[%emt 0:01:13]} 21. Rhe1 {[%emt 0:02:53]} Rd6 {[%emt 0:05:21]} 22. Rxe8 {[%emt 0:05:42]} Qxe8 {[%emt 0:00:17]} 23. Re1 {[%emt 0:03:46]} Qd7 {[%emt 0:00:56]} 24. Nf5 {[%emt 0:08:18]} Rc6 {[%emt 0:02:06]} 25. Nd4 {[%emt 0:04:17]} Rh6 {[%emt 0:03:08]} 26. h3 {[%emt 0:05:06]} 1/2-1/2